fUSD/lending_fUSD_20250202
["ID","MTS","AMOUNT","RATE_DAILY","PERIOD"]
[351313036,1738511502763,-2517.19,0.00012602,2]
[351313037,1738511502773,-604.41970082,0.00012602,2]
[351313038,1738511502783,-3495.99,0.00012602,2]
[351313039,1738511502792,-500.0,0.00012602,2]
[351313040,1738511502802,-1097.15,0.00012602,2]
[351313041,1738511502812,-3686.72,0.00012602,2]
[351313042,1738511502822,-873.88,0.00012602,2]
[351313043,1738511502833,-4032.99,0.00012602,2]
[351313044,1738511502844,-500.0,0.00012602,2]
[351313045,1738511502854,-2612.06,0.00012602,2]
[351313046,1738511502866,-3411.01,0.00012602,2]
[351313047,1738511502875,-2404.98,0.00012602,2]
[351313048,1738511502886,-500.0,0.00012602,2]
[351313049,1738511502896,-500.0,0.00012602,2]
[351313050,1738511502907,-866.33,0.00012602,2]
[351313051,1738511502917,-3469.55,0.00012602,2]
[351313052,1738511502928,-1883.12,0.00012602,2]
[351313053,1738511502938,-2058.8,0.00012602,2]
[351313054,1738511502948,-1319.01,0.00012602,2]
[351313055,1738511502958,-608.43,0.00012602,2]
[351313056,1738511502968,-2391.61,0.00012602,2]
[351313057,1738511502978,-4530.32,0.00012602,2]
[351313058,1738511502988,-500.0,0.00012602,2]
[351313059,1738511502998,-1228.14,0.00012602,2]
[351313060,1738511503007,-6198.62,0.00012602,2]
[351313061,1738511503368,-500.0,0.00012602,2]
[351313062,1738511503388,-4177.74,0.00012602,2]
[351313063,1738511503403,-500.0,0.00012602,2]
[351313064,1738511503413,-853.08,0.00012602,2]
[351313065,1738511503423,-500.0,0.00012602,2]
[351313066,1738511503432,-669.71,0.00012602,2]
[351313067,1738511503442,-539.5,0.00012602,2]
[351313068,1738511503451,-1402.67,0.00012602,2]
[351313069,1738511503461,-1801.53,0.00012602,2]
[351313070,1738511503470,-1549.92,0.00012602,2]
[351313071,1738511503480,-500.0,0.00012602,2]
[351313072,1738511503489,-820.42,0.00012602,2]
[351313073,1738511503502,-569.44,0.00012602,2]
[351313074,1738511503512,-935.02,0.00012602,2]
[351313075,1738511503522,-816.63,0.00012602,2]
[351313076,1738511503531,-500.0,0.00012602,2]
[351313077,1738511503541,-584.53,0.00012602,2]
[351313078,1738511503551,-885.67,0.00012602,2]
[351313079,1738511503560,-250.0,0.00012642,2]
[351313080,1738511503571,-269.295923,0.00012732,2]
[351313081,1738511503582,-269.295923,0.00012732,2]
[351313082,1738511503591,-1332.82,0.00012732,2]
[351313083,1738511503600,-1964.01,0.00012732,2]
[351313084,1738511503610,-2603.59,0.00012732,2]
[351313085,1738511503620,-2889.94,0.00012732,2]
[351313086,1738511503629,-4743.23,0.00012732,2]
[351313087,1738511503639,-10523.62,0.00012732,2]
[351313088,1738511503649,-1554.63,0.00012732,2]
[351313089,1738511503658,-1284.59,0.00012732,2]
[351313090,1738511503667,-1679.21,0.00012732,2]
[351313091,1738511503679,-2652.81,0.00012732,2]
[351313092,1738511503688,-654.17,0.00012732,2]
[351313093,1738511503698,-1718.82,0.00012732,2]
[351313094,1738511503708,-1974.37,0.00012732,2]
[351313095,1738511503718,-2000.83,0.00012732,2]
[351313096,1738511503728,-836.56,0.00012732,2]
[351313097,1738511503738,-1343.39,0.00012732,2]
[351313098,1738511503748,-1186.75,0.00012732,2]
[351313099,1738511503758,-500.0,0.00012733,2]
[351313100,1738511503768,-500.0,0.00012733,2]
[351313101,1738511503778,-596.58,0.00012733,2]
[351313102,1738511503787,-500.0,0.00012733,2]
[351313103,1738511503797,-151.0,0.00012733,2]
[351313104,1738511503807,-165.376134,0.00012733,2]
[351313105,1738511503816,-165.376134,0.00012733,2]
[351313106,1738511503827,-260.520012,0.00012733,2]
[351313107,1738511503836,-260.520012,0.00012733,2]
[351313108,1738511503846,-151.0,0.00012733,2]
[351313109,1738511503856,-217.374194,0.00012733,2]
[351313110,1738511503866,-217.374194,0.00012733,2]
[351313111,1738511503875,-151.0,0.00012733,2]
[351313112,1738511503886,-710.49,0.00012733,2]
[351313113,1738511503896,-151.771898,0.00012734,2]
[351313114,1738511503905,-609.426977,0.00012734,2]
[351313115,1738511503915,-609.426977,0.00012734,2]
[351313116,1738511503925,-151.0,0.00012734,2]
[351313117,1738511503935,-151.0,0.00012734,2]
[351313118,1738511503944,-151.0,0.00012734,2]
[351313119,1738511503955,-1187.42,0.00012734,2]
[351313120,1738511503964,-817.82,0.00012734,2]
[351313121,1738511503974,-607.41,0.00012734,2]
[351313122,1738511503984,-500.0,0.00012734,2]
[351313123,1738511503994,-1230.03,0.00012734,2]
[351313124,1738511504003,-615.34,0.00012734,2]
[351313125,1738511504013,-714.07,0.00012734,2]
[351313126,1738511504023,-1449.17,0.00012734,2]
[351313127,1738511504033,-1251.19,0.00012734,2]
[351313128,1738511504042,-1405.84,0.00012734,2]
[351313129,1738511504052,-1494.61,0.00012734,2]
[351313130,1738511504062,-828.44,0.00012734,2]
[351313131,1738511504071,-500.0,0.00012734,2]
[351313132,1738511504081,-676.04,0.00012734,2]
[351313133,1738511504091,-535.23,0.00012734,2]
[351313134,1738511504101,-1723.36,0.00012734,2]
[351313135,1738511504111,-854.84,0.00012734,2]
[351313136,1738511504120,-1459.08,0.00012734,2]
[351313137,1738511504130,-1678.19,0.00012734,2]
[351313138,1738511504139,-571.62,0.00012734,2]
[351313139,1738511504150,-780.5,0.00012734,2]
[351313140,1738511504159,-500.0,0.00012734,2]
[351313141,1738511504169,-1296.82,0.00012734,2]
[351313142,1738511504179,-1446.98,0.00012734,2]
[351313143,1738511504188,-500.0,0.00012734,2]
[351313144,1738511504198,-618.81,0.00012734,2]
[351313145,1738511504208,-730.18,0.00012734,2]
[351313146,1738511504218,-609.86,0.00012734,2]
[351313147,1738511504227,-978.46,0.00012738,2]
[351313148,1738511504237,-518.13,0.00012738,2]
[351313149,1738511504247,-500.0,0.00012738,2]
[351313150,1738511504256,-1147.35,0.00012738,2]
[351313151,1738511504266,-668.46,0.00012738,2]
[351313152,1738511504276,-1211.37,0.00012738,2]
[351313153,1738511504286,-594.76,0.00012738,2]
[351313154,1738511504296,-1093.43,0.00012738,2]
[351313155,1738511504306,-500.0,0.00012738,2]
[351313156,1738511504315,-500.0,0.00012738,2]
[351313157,1738511504325,-524.63922566,0.00012738,2]
[351313158,1738511504334,-500.0,0.00012738,2]
[351313159,1738511504343,-829.51,0.00012738,2]
[351313160,1738511504353,-500.0,0.00012738,2]
[351313161,1738511504362,-500.0,0.00012738,2]
[351313162,1738511504372,-1097.71,0.00012738,2]
[351313163,1738511504381,-1068.84,0.00012738,2]
[351313164,1738511504391,-555.90451361,0.00012738,2]
[351313165,1738511504400,-500.0,0.00012738,2]
[351313166,1738511504410,-500.0,0.00012738,2]
[351313167,1738511504419,-500.0,0.00012738,2]
[351313168,1738511504429,-561.08,0.00012738,2]
[351313169,1738511504439,-500.0,0.00012738,2]
[351313170,1738511504448,-515.69,0.00012738,2]
[351313171,1738511504457,-653.67,0.00012738,2]
[351313172,1738511504467,-1093.31,0.00012738,2]
[351313173,1738511504476,-1053.18,0.00012738,2]
[351313174,1738511504486,-335.62271937,0.00012738,2]
[351313175,1738511504496,-1273.51,0.00012738,2]
[351313176,1738511504509,-522.28,0.00012738,2]
[351313177,1738511504518,-1239.31,0.00012738,2]
[351313178,1738511504527,-740.34,0.00012738,2]
[351313179,1738511504537,-500.0,0.00012738,2]
[351313180,1738511504547,-644.61,0.00012738,2]
[351313181,1738511504560,-913.35,0.00012738,2]
[351313182,1738511504570,-1062.0,0.00012738,2]
[351313183,1738511504579,-1115.18,0.00012738,2]
[351313184,1738511504590,-945.68,0.00012738,2]
[351313185,1738511504599,-607.69,0.00012738,2]
[351313186,1738511504609,-500.0,0.00012738,2]
[351313187,1738511504618,-522.96,0.00012738,2]
[351313188,1738511504627,-1035.26,0.00012738,2]
[351313189,1738511504636,-2196.81,0.00012738,2]
[351313190,1738511504646,-298.08,0.00012738,2]
[351313191,1738511504656,-1325.26,0.00012738,2]
[351313192,1738511504665,-975.31,0.00012738,2]
[351313193,1738511504674,-1985.37,0.00012738,2]
[351313194,1738511504683,-918.08,0.00012738,2]
[351313195,1738511504694,-2083.26,0.00012738,2]
[351313196,1738511504703,-1965.57,0.00012738,2]
[351313197,1738511504713,-1323.45,0.00012738,2]
[351313198,1738511504722,-1635.63,0.00012738,2]
[351313199,1738511504732,-500.0,0.00012738,2]
[351313200,1738511504742,-5662.33,0.00012738,2]
[351313201,1738511504752,-774.16,0.00012738,2]
[351313202,1738511504762,-782.48,0.00012738,2]
[351313203,1738511504771,-7030.17,0.00012738,2]
[351313204,1738511504781,-2514.52,0.00012738,2]
[351313205,1738511504790,-681.48,0.00012738,2]
[351313206,1738511504800,-790.42,0.00012738,2]
[351313207,1738511504809,-3657.25,0.00012738,2]
[351313208,1738511504818,-3049.12,0.00012738,2]
[351313209,1738511504829,-1745.16,0.00012738,2]
[351313210,1738511504838,-1031.35,0.00012738,2]
[351313211,1738511504848,-1816.81,0.00012738,2]
[351313212,1738511504858,-528.0,0.00012738,2]
[351313213,1738511504868,-4052.48,0.00012738,2]
[351313214,1738511504878,-602.22,0.00012738,2]
[351313215,1738511504888,-500.0,0.00012738,2]
[351313216,1738511504898,-1474.86,0.00012738,2]
[351313217,1738511504907,-4337.5,0.00012738,2]
[351313218,1738511504916,-1297.61,0.00012738,2]
[351313219,1738511504927,-1453.24,0.00012738,2]
[351313220,1738511504936,-1696.27,0.00012738,2]
[351313221,1738511504946,-1292.86,0.00012738,2]
[351313222,1738511504956,-1155.8,0.00012738,2]
[351313223,1738511504966,-734.3,0.00012738,2]
[351313224,1738511504976,-1512.01,0.00012738,2]
[351313225,1738511504985,-1336.03,0.00012738,2]
[351313226,1738511504995,-500.0,0.00012738,2]
[351313227,1738511505005,-686.62,0.00012738,2]
[351313228,1738511505015,-1393.61,0.00012738,2]
[351313229,1738511505025,-500.0,0.00012738,2]
[351313230,1738511505035,-1657.23,0.00012738,2]
[351313231,1738511505045,-1120.37,0.00012738,2]
[351313232,1738511505055,-823.51,0.00012738,2]
[351313233,1738511505064,-567.58953332,0.00012739,2]
[351313234,1738511505073,-500.0,0.00012739,2]
[351313235,1738511505082,-663.36,0.00012739,2]
[351313236,1738511505092,-500.0,0.00012739,2]
[351313237,1738511505101,-500.0,0.00012739,2]
[351313238,1738511505110,-500.0,0.00012739,2]
[351313239,1738511505120,-698.15,0.00012739,2]
[351313240,1738511505130,-500.0,0.00012739,2]
[351313241,1738511505139,-500.0,0.00012739,2]
[351313242,1738511505148,-500.0,0.00012739,2]
[351313243,1738511505158,-500.0,0.00012739,2]
[351313244,1738511505167,-299.56764004,0.00012739,2]
[351313245,1738511505177,-500.0,0.00012739,2]
[351313246,1738511505188,-424.52424723,0.00012739,2]
[351313247,1738511505197,-158.53843217,0.00012739,2]
[351313248,1738511505207,-500.0,0.00012739,2]
[351313249,1738511505217,-705.16,0.00012739,2]
[351313250,1738511505226,-531.92,0.00012739,2]
[351313251,1738511505237,-500.0,0.00012739,2]
[351313252,1738511505247,-500.0,0.00012739,2]
[351313253,1738511505257,-500.0,0.00012739,2]
[351313254,1738511505267,-500.0,0.00012739,2]
[351313255,1738511505276,-500.0,0.00012739,2]
[351313256,1738511505285,-500.0,0.00012739,2]
[351313257,1738511505295,-719.85,0.00012739,2]
[351313258,1738511505305,-594.38,0.00012739,2]
[351313259,1738511505315,-563.78,0.00012739,2]
[351313260,1738511505325,-500.0,0.00012739,2]
[351313261,1738511505335,-500.0,0.00012739,2]
[351313262,1738511505345,-752.42,0.00012739,2]
[351313263,1738511505355,-500.0,0.00012739,2]
[351313264,1738511505364,-500.0,0.00012739,2]
[351313265,1738511505374,-743.8,0.00012739,2]
[351313266,1738511505384,-500.0,0.00012739,2]
[351313267,1738511505394,-500.0,0.00012739,2]
[351313268,1738511505404,-500.0,0.00012739,2]
[351313269,1738511505414,-500.0,0.00012739,2]
[351313270,1738511505423,-725.47,0.00012739,2]
[351313271,1738511505433,-764.06,0.00012739,2]
[351313272,1738511505443,-500.0,0.00012739,2]
[351313273,1738511505452,-698.18,0.00012739,2]
[351313274,1738511505462,-791.74,0.00012739,2]
[351313275,1738511505473,-807.25,0.00012739,2]
[351313276,1738511505483,-547.53,0.00012739,2]
[351313277,1738511505493,-500.0,0.00012739,2]
[351313278,1738511505505,-500.0,0.00012739,2]
[351313279,1738511505515,-367.6122775,0.00012739,2]
[351313280,1738511505525,-837.73,0.00012739,2]
[351313281,1738511505535,-621.45,0.00012739,2]
[351313282,1738511505546,-631.63,0.00012739,2]
[351313283,1738511505556,-799.17,0.00012739,2]
[351313284,1738511505566,-771.95,0.00012739,2]
[351313285,1738511505576,-620.52,0.00012739,2]
[351313286,1738511505586,-553.986468,0.00012739,2]
[351313287,1738511505596,-618.87,0.00012739,2]
[351313288,1738511505606,-553.986468,0.00012739,2]
[351313289,1738511505616,-616.27,0.00012739,2]
[351313290,1738511505626,-500.0,0.00012739,2]
[351313291,1738511505635,-565.37,0.00012739,2]
[351313292,1738511505645,-500.0,0.00012739,2]
[351313293,1738511505654,-151.0,0.00012739,2]
[351313294,1738511505664,-151.0,0.00012739,2]
[351313295,1738511505674,-500.0,0.00012739,2]
[351313296,1738511505683,-403.5342464,0.00012739,2]
[351313297,1738511505692,-780.81,0.00012739,2]
[351313298,1738511505702,-584.3,0.00012739,2]
[351313299,1738511505711,-652.17835,0.00012739,2]
[351313300,1738511505722,-500.0,0.00012739,2]
[351313301,1738511505731,-151.0,0.00012739,2]
[351313302,1738511505741,-652.17835,0.00012739,2]
[351313303,1738511505751,-151.0,0.00012739,2]
[351313304,1738511505761,-2686.29,0.00012739,2]
[351313305,1738511505771,-705.724075,0.00012739,2]
[351313306,1738511505781,-1931.954796,0.00012739,2]
[351313307,1738511505791,-500.0,0.00012739,2]
[351313308,1738511505801,-705.724075,0.00012739,2]
[351313309,1738511505811,-1931.954796,0.00012739,2]
[351313310,1738511505821,-450.32176974,0.00012739,2]
[351313311,1738511505831,-808.37,0.00012739,2]
[351313312,1738511505840,-794.83,0.00012739,2]
[351313313,1738511505850,-2679.98,0.00012739,2]
[351313314,1738511505860,-500.0,0.00012739,2]
[351313315,1738511505870,-2338.08,0.00012739,2]
[351313316,1738511505880,-1073.23,0.00012739,2]
[351313317,1738511505889,-500.0,0.00012739,2]
[351313318,1738511505899,-500.0,0.00012739,2]
[351313319,1738511505908,-1816.82,0.00012739,2]
[351313320,1738511505918,-1683.79,0.00012739,2]
[351313321,1738511505929,-4162.42,0.00012739,2]
[351313322,1738511505938,-3144.7,0.00012739,2]
[351313323,1738511505947,-293.33,0.00012739,2]
[351313324,1738511505957,-575.75,0.00012739,2]
[351313325,1738511505967,-305.292181,0.00012739,2]
[351313326,1738511505978,-689.19,0.00012739,2]
[351313327,1738511505988,-1191.99,0.00012739,2]
[351313328,1738511505998,-851.33,0.00012739,2]
[351313329,1738511506008,-677.75,0.00012739,2]
[351313330,1738511506017,-1595.43,0.00012739,2]
[351313331,1738511506028,-2506.07,0.00012739,2]
[351313332,1738511506038,-539.77,0.00012739,2]
[351313333,1738511506048,-842.15,0.00012739,2]
[351313334,1738511506058,-3571.76,0.00012739,2]
[351313335,1738511506068,-754.64,0.00012739,2]
[351313336,1738511506078,-779.97,0.00012739,2]
[351313337,1738511506088,-319.816449,0.00012739,2]
[351313338,1738511506098,-3366.95,0.00012739,2]
[351313339,1738511506108,-1388.96,0.00012739,2]
[351313340,1738511506119,-1447.22,0.00012739,2]
[351313341,1738511506129,-1621.42,0.00012739,2]
[351313342,1738511506139,-1280.75,0.00012739,2]
[351313343,1738511506149,-2398.8,0.00012739,2]
[351313344,1738511506158,-986.99,0.00012739,2]
[351313345,1738511506168,-6074.3,0.00012739,2]
[351313346,1738511506178,-886.37,0.00012739,2]
[351313347,1738511506188,-1376.7,0.00012739,2]
[351313348,1738511506198,-500.0,0.00012739,2]
[351313349,1738511506207,-715.29,0.00012739,2]
[351313350,1738511506217,-1472.49,0.00012739,2]
[351313351,1738511506227,-500.0,0.00012739,2]
[351313352,1738511506237,-520.69,0.00012739,2]
[351313353,1738511506246,-2816.92,0.00012739,2]
[351313354,1738511506255,-1537.46,0.00012739,2]
[351313355,1738511506266,-1782.22,0.00012739,2]
[351313356,1738511506277,-2593.44,0.00012739,2]
[351313357,1738511506287,-1707.98,0.00012739,2]
[351313358,1738511506296,-814.03,0.00012739,2]
[351313359,1738511506306,-2517.19,0.00012739,2]
[351313360,1738511506316,-3495.99,0.00012739,2]
[351313361,1738511506326,-500.0,0.00012739,2]
[351313362,1738511506336,-1097.15,0.00012739,2]
[351313363,1738511506346,-3686.72,0.00012739,2]
[351313364,1738511506356,-873.88,0.00012739,2]
[351313365,1738511506366,-4032.99,0.00012739,2]
[351313366,1738511506376,-500.0,0.00012739,2]
[351313367,1738511506386,-2612.06,0.00012739,2]
[351313368,1738511506396,-3411.01,0.00012739,2]
[351313369,1738511506407,-2404.98,0.00012739,2]
[351313370,1738511506417,-203.42392806,0.00012739,2]
[351313371,1738511506427,-500.0,0.00012739,2]
[351313372,1738511506437,-866.33,0.00012739,2]
[351313373,1738511506447,-3469.55,0.00012739,2]
[351313374,1738511506457,-1883.12,0.00012739,2]
[351313375,1738511506467,-2058.8,0.00012739,2]
[351313376,1738511506477,-1319.01,0.00012739,2]
[351313377,1738511506487,-608.43,0.00012739,2]
[351313378,1738511506497,-2391.61,0.00012739,2]
[351313379,1738511506510,-4530.32,0.00012739,2]
[351313380,1738511506520,-500.0,0.00012739,2]
[351313381,1738511506530,-1228.14,0.00012739,2]
[351313382,1738511506542,-6198.62,0.00012739,2]
[351313383,1738511506553,-500.0,0.00012739,2]
[351313384,1738511506563,-4177.74,0.00012739,2]
[351313385,1738511506574,-447.81561754,0.00012739,2]
[351313386,1738511506583,-853.08,0.00012739,2]
[351313387,1738511506730,-500.0,0.00012739,2]
[351313388,1738511506765,-669.71,0.00012739,2]
[351313389,1738511506776,-539.5,0.00012739,2]
[351313390,1738511506786,-1402.67,0.00012739,2]
[351313391,1738511506796,-1801.53,0.00012739,2]
[351313392,1738511506811,-1549.92,0.00012739,2]
[351313393,1738511506820,-500.0,0.00012739,2]
[351313394,1738511506831,-820.42,0.00012739,2]
[351313395,1738511506842,-569.44,0.00012739,2]
[351313396,1738511506852,-935.02,0.00012739,2]
[351313397,1738511506863,-816.63,0.00012739,2]
[351313398,1738511506874,-500.0,0.00012739,2]
[351313399,1738511506885,-584.53,0.00012739,2]
[351313400,1738511506896,-885.67,0.00012739,2]
[351313401,1738511506906,-2022.0,0.00012739,2]
[351313402,1738511506916,-1272.0,0.00012739,2]
[351313403,1738511506927,-701.493,0.00012739,2]
[351313404,1738511506938,-151.217,0.00012739,2]
[351313405,1738511506947,-568.29,0.00012739,2]
[351313406,1738511506959,-1867.0,0.00012739,2]
[351313407,1738511506969,-1275.667,0.00012739,2]
[351313408,1738511506979,-907.0,0.00012739,2]
[351313409,1738511506991,-864.0,0.00012739,2]
[351313410,1738511507002,-2952.0,0.00012739,2]
[351313411,1738511507013,-538.0,0.00012739,2]
[351313412,1738511507023,-150.0,0.00012739,2]
[351313413,1738511507034,-3910.0,0.00012739,2]
[351313414,1738511507043,-152.05,0.00012739,2]
[351313415,1738511507054,-1006.0,0.00012739,2]
[351313416,1738511507063,-156.851,0.00012739,2]
[351313417,1738511507074,-1110.304,0.00012739,2]
[351313418,1738511507084,-151.2,0.00012746,2]
[351313419,1738511507094,-151.86,0.00012746,2]
[351313420,1738511507104,-894.43,0.00012746,2]
[351313421,1738511507114,-300.0,0.00012746,2]
[351313422,1738511507124,-745.12,0.00012754,2]
[351313423,1738511507134,-150.0,0.00012759,5]
[351313424,1738511507144,-1000.0,0.00012777,2]
[351313425,1738511507154,-779.83,0.00012797,2]
[351313426,1738511507165,-1332.82,0.00012869,2]
[351313427,1738511507176,-1964.01,0.00012869,2]
[351313428,1738511507187,-2603.59,0.00012869,2]
[351313429,1738511507197,-2889.94,0.00012869,2]
[351313430,1738511507207,-4743.23,0.00012869,2]
[351313431,1738511507216,-10523.62,0.00012869,2]
[351313432,1738511507226,-1554.63,0.00012869,2]
[351313433,1738511507237,-1284.59,0.00012869,2]
[351313434,1738511507248,-1679.21,0.00012869,2]
[351313435,1738511507259,-2652.81,0.00012869,2]
[351313436,1738511507271,-654.17,0.00012869,2]
[351313437,1738511507280,-1718.82,0.00012869,2]
[351313438,1738511507290,-1974.37,0.00012869,2]
[351313439,1738511507301,-2000.83,0.00012869,2]
[351313440,1738511507310,-836.56,0.00012869,2]
[351313441,1738511507320,-1343.39,0.00012869,2]
[351313442,1738511507331,-1186.75,0.00012869,2]
[351313443,1738511507341,-151.335131,0.0001287,2]
[351313444,1738511507351,-151.188736,0.0001287,2]
[351313445,1738511507362,-500.0,0.0001287,2]
[351313446,1738511507372,-500.0,0.0001287,2]
[351313447,1738511507382,-596.58,0.0001287,2]
[351313448,1738511507391,-500.0,0.0001287,2]
[351313449,1738511507401,-151.0,0.0001287,2]
[351313450,1738511507411,-165.376134,0.0001287,2]
[351313451,1738511507420,-165.376134,0.0001287,2]
[351313452,1738511507430,-260.520012,0.0001287,2]
[351313453,1738511507440,-260.520012,0.0001287,2]
[351313454,1738511507450,-152.951899,0.0001287,2]
[351313455,1738511507460,-217.374194,0.0001287,2]
[351313456,1738511507470,-217.374194,0.0001287,2]
[351313457,1738511507480,-151.0,0.0001287,2]
[351313458,1738511507490,-151.0,0.0001287,2]
[351313459,1738511507500,-218.899169,0.0001287,2]
[351313460,1738511507515,-212.209399,0.0001287,2]
[351313461,1738511507524,-710.49,0.0001287,2]
[351313462,1738511507535,-1187.42,0.00012871,2]
[351313463,1738511507545,-817.82,0.00012871,2]
[351313464,1738511507555,-607.41,0.00012871,2]
[351313465,1738511507565,-500.0,0.00012871,2]
[351313466,1738511507575,-1230.03,0.00012871,2]
[351313467,1738511507586,-615.34,0.00012871,2]
[351313468,1738511507596,-714.07,0.00012871,2]
[351313469,1738511507606,-1449.17,0.00012871,2]
[351313470,1738511507616,-1251.19,0.00012871,2]
[351313471,1738511507625,-1405.84,0.00012871,2]
[351313472,1738511507635,-1494.61,0.00012871,2]
[351313473,1738511507645,-828.44,0.00012871,2]
[351313474,1738511507655,-500.0,0.00012871,2]
[351313475,1738511507666,-676.04,0.00012871,2]
[351313476,1738511507677,-535.23,0.00012871,2]
[351313477,1738511507688,-1723.36,0.00012871,2]
[351313478,1738511507698,-854.84,0.00012871,2]
[351313479,1738511507708,-1459.08,0.00012871,2]
[351313480,1738511507718,-1678.19,0.00012871,2]
[351313481,1738511507728,-571.62,0.00012871,2]
[351313482,1738511507738,-780.5,0.00012871,2]
[351313483,1738511507748,-500.0,0.00012871,2]
[351313484,1738511507758,-1296.82,0.00012871,2]
[351313485,1738511507768,-1446.98,0.00012871,2]
[351313486,1738511507779,-500.0,0.00012871,2]
[351313487,1738511507788,-618.81,0.00012871,2]
[351313488,1738511507799,-730.18,0.00012871,2]
[351313489,1738511507808,-609.86,0.00012871,2]
[351313490,1738511507818,-978.46,0.00012875,2]
[351313491,1738511507828,-518.13,0.00012875,2]
[351313492,1738511507838,-500.0,0.00012875,2]
[351313493,1738511507847,-1147.35,0.00012875,2]
[351313494,1738511507857,-668.46,0.00012875,2]
[351313495,1738511507867,-1211.37,0.00012875,2]
[351313496,1738511507878,-594.76,0.00012875,2]
[351313497,1738511507888,-1093.43,0.00012875,2]
[351313498,1738511507898,-500.0,0.00012875,2]
[351313499,1738511507909,-500.0,0.00012875,2]
[351313500,1738511507919,-500.0,0.00012875,2]
[351313501,1738511507930,-829.51,0.00012875,2]
[351313502,1738511507940,-500.0,0.00012875,2]
[351313503,1738511507950,-500.0,0.00012875,2]
[351313504,1738511507960,-1097.71,0.00012875,2]
[351313505,1738511507970,-1068.84,0.00012875,2]
[351313506,1738511507980,-500.0,0.00012875,2]
[351313507,1738511507991,-500.0,0.00012875,2]
[351313508,1738511508000,-500.0,0.00012875,2]
[351313509,1738511508010,-561.08,0.00012875,2]
[351313510,1738511508019,-500.0,0.00012875,2]
[351313511,1738511508029,-515.69,0.00012875,2]
[351313512,1738511508039,-653.67,0.00012875,2]
[351313513,1738511508049,-1093.31,0.00012875,2]
[351313514,1738511508059,-1053.18,0.00012875,2]
[351313515,1738511508069,-1273.51,0.00012875,2]
[351313516,1738511508079,-522.28,0.00012875,2]
[351313517,1738511508089,-1239.31,0.00012875,2]
[351313518,1738511508099,-740.34,0.00012875,2]
[351313519,1738511508109,-500.0,0.00012875,2]
[351313520,1738511508119,-644.61,0.00012875,2]
[351313521,1738511508129,-913.35,0.00012875,2]
[351313522,1738511508139,-1062.0,0.00012875,2]
[351313523,1738511508150,-1115.18,0.00012875,2]
[351313524,1738511508160,-945.68,0.00012875,2]
[351313525,1738511508170,-607.69,0.00012875,2]
[351313526,1738511508179,-500.0,0.00012875,2]
[351313527,1738511508189,-522.96,0.00012875,2]
[351313528,1738511508199,-1035.26,0.00012875,2]
[351313529,1738511508209,-2196.81,0.00012875,2]
[351313530,1738511508219,-1325.26,0.00012875,2]
[351313531,1738511508229,-975.31,0.00012875,2]
[351313532,1738511508238,-1985.37,0.00012875,2]
[351313533,1738511508248,-918.08,0.00012875,2]
[351313534,1738511508258,-2083.26,0.00012875,2]
[351313535,1738511508268,-1965.57,0.00012875,2]